[Event "87th Tata Steel Masters 2025"]
[White "Caruana,Fabiano"]
[Black "Warmerdam,Max"]
[Site "Wijk aan Zee"]
[Round "13.1"]
[Annotator "TA"]
[Result "0-1"]
[Date "2025.02.02"]
[WhiteElo "2803"]
[BlackElo "2646"]
[PlyCount "126"]
[TimeControl "60"]

{[%evp 9,126,3,0,0,5,0,2,5,12,-12,0,0,2,0,8,0,43,46,66,27,31,15,70,61,54,22,19,0,-5,8,0,-22,-10,-19,0,-48,-52,-71,-66,-71,-53,-73,-75,-87,-77,-81,-75,-98,-81,-83,-71,-68,-84,-63,-64,-104,-89,-108,-117,-124,-122,-111,-132,-133,-123,-280,-308,-439,-428,-593,-610,-591,-568,-516,-507,-685,-729,-661,-483,-467,-464,-452,-417,-421,-429,-726,-725,-719,-704,-691,-682,-671,-656,-648,-633,-625,-604,-580,-473,-1045,-1047,-937,-929,-677,-290,-633,0,-635,-627,-591,-582,-583,0,-6,0,-578,-578,-535,-521]} 1. d4 {[%emt 0:0:7]} d5 {[%emt 0:0:6]} 2. Nf3 {[%emt 0:0:5]} Nf6 {[%emt 0:0:4]} 3. e3 {[%emt 0:0:3]} a6 {[%emt 0:0:20]} 4. h3 {[%emt 0:12:51]} e6 {[%emt 0:8:47]} 5. b3 $146 {[%emt 0:0:22]} (5. Bd3 b5 6. O-O Bb7 7. a4 Nbd7 8. axb5 axb5 9. Rxa8 Qxa8 10. Bxb5 Bd6 11. c4 dxc4 12. Bxc4 {0-1 Filippova,M (2004)-Mahdian,A (2088) Titled Tuesday intern op 24th Sep Early blitz 2024 (6)} )b6 {[%emt 0:1:42]} 6. Bb2 {[%emt 0:0:55] D04: Colle System.} Bb7 {[%emt 0:0:7]} 7. Nbd2 {[%emt 0:0:21]} Nbd7 {[%emt 0:2:24]} 8. Bd3 {[%emt 0:1:52] The position is equal.} Bd6 {[%emt 0:0:37]} 9. c4 {[%emt 0:8:40]} O-O {[%emt 0:2:54]} 10. O-O {[%emt 0:2:52]} Qe7 {[%emt 0:10:6]} 11. Ne5 {[%emt 0:8:56]} Ne4 {[%emt 0:9:24]} 12. Rc1 {[%emt 0:11:26]} Bxe5 {[%emt 0:18:33]} 13. dxe5 {[%emt 0:0:8]} Ndc5 {[%emt 0:0:18]} 14. Bb1 {[%emt 0:0:55]} Rfd8 {[%emt 0:6:50]} 15. cxd5 {[%emt 0:4:35]} Nxd2 {[%emt 0:4:59]} (15... Rxd5 $11 16. Bd4 f5 )16. Qxd2 $14 {[%emt 0:0:11] and Qc2 would now be decisive} Bxd5 {[%emt 0:0:5]} 17. Bd4 {[%emt 0:1:51]} Ne4 {[%emt 0:2:12]} 18. Qe2 {[%emt 0:20:53]} c5 $36 {[%emt 0:0:34][%mdl 2048] Black is more active.} 19. Bb2 {[%emt 0:0:4]} Qg5 {[%emt 0:3:9][%cal Ye4c3]} 20. f4 {[%emt 0:0:16]} Qe7 {[%emt 0:4:9]} (20... Qg3 {with more complications.} 21. Bc2 Bc6 22. Rfd1 a5 )21. Rfd1 {[%emt 0:2:44]} a5 {[%emt 0:0:24]} 22. Bd3 {[%emt 0:7:24]} (22. Qf3 $11 {is more appropriate.} Ng5 23. Qg4 )a4 $15 {[%emt 0:4:11]} 23. bxa4 {[%emt 0:0:4]} Rxa4 {[%emt 0:0:35]} 24. a3 {[%emt 0:0:2]} Raa8 {[%emt 0:3:46]} 25. Kh2 {[%emt 0:1:25]} h6 {[%emt 0:7:12]} 26. Qc2 {[%emt 0:9:37]} Qb7 {[%emt 0:0:7]} 27. Bb5 {[%emt 0:0:18]} Rac8 {[%emt 0:3:34]} 28. Qe2 {[%emt 0:1:35]} Qa8 {[%emt 0:0:48]} 29. a4 {[%emt 0:7:20]} Bb3 {[%emt 0:2:19]} 30. Rd3 {[%emt 0:0:2]} Rxd3 {[%emt 0:4:21]} (30... Bxa4 31. Ra1 Bxb5 (31... Rxd3 $2 32. Rxa4 Rd2 33. Rxa8 $18 )32. Rxd8+ Rxd8 33. Rxa8 (33. Qxb5 $2 Qb7 $19 )Bxe2 34. Rxd8+ Kh7 35. Rf8 $18 )31. Qxd3 {[%emt 0:0:4]} Bd5 {[%emt 0:0:52]} (31... Bxa4 $6 32. Ra1 Bxb5 33. Rxa8 Bxd3 34. Rxc8+ Kh7 35. Ba3 $16 )32. Qc2 {[%emt 0:2:20]} g6 {[%emt 0:5:59]} 33. Rd1 {[%emt 0:0:27]} h5 {[%emt 0:0:39][%cal Yh6h5,Yh5h4][%mdl 32]} 34. Bc1 {[%emt 0:3:25]} h4 {[%emt 0:1:3]} 35. Bd2 {[%emt 0:0:23]} Ng3 {[%emt 0:0:33]} 36. Be1 {[%emt 0:0:28]} Nf5 {[%emt 0:0:15]} 37. Rxd5 $2 {[%emt 0:3:2]} Nxe3 $19 {[%emt 0:1:41]} (37... exd5 38. Qe2 $19 )38. Qc1 {[%emt 0:0:5]} (38. Qe4 $142 Nxd5 (38... Qxd5 39. Qxe3 c4 40. Bb4 $16 )39. Bxh4 )Nxd5 {[%emt 0:0:14]} 39. Bxh4 {[%emt 0:0:3] [#]} c4 $1 {[%emt 0:0:51]} 40. f5 {[%emt 0:1:36]} exf5 {[%emt 0:1:6]} (40... gxf5 $2 41. Qg5+ Kh7 42. Qh5+ Kg7 43. Bf6+ Nxf6 44. Qg5+ Kh7 45. exf6 $18 )41. Bd7 {[%emt 0:4:11] [#]} f4 $1 {[%emt 0:11:59][%cal Yd5e3]} 42. e6 {[%emt 0:13:0] [#]} (42. Bxc8 Ne3 )Ne3 $1 {[%emt 0:2:41][%csl Ge3][%cal Ra8g2]} 43. Qg1 {[%emt 0:0:4] [#]} c3 $1 {[%emt 0:6:30][%cal Yc3c2]} 44. Bxc8 {[%emt 0:1:13][%cal Yg1f2]} Qxc8 {[%emt 0:1:26][%mdl 4096] Endgame KQB-KQN. Black is a pawn up.} 45. e7 {[%emt 0:0:3]} c2 {[%emt 0:3:31]} 46. Bg5 {[%emt 0:11:16]} Kh7 {[%emt 0:8:19]} (46... c1=B 47. Qxc1 (47. Bxf4 $2 {too greedy.} Ng4+ 48. Kg3 Bxf4+ 49. Kxf4 Nf6 $19 )Qxc1 48. e8=Q+ (48. e8=B $2 Nf1+ 49. Kh1 Ng3+ 50. Kh2 Qh1# )Kg7 49. Qe5+ (49. Bxf4 $2 Nf1+ 50. Kg1 Qxf4 $19 )Kh7 50. Qxf4 Nf1+ 51. Kg1 Nd2+ 52. Kf2 $11 )47. Qe1 {[%emt 0:4:1]} (47. e8=Q $142 Qxe8 48. Bxf4 )Qc6 {[%emt 0:1:16][%csl Ge3][%cal Rc6g2]} (47... c1=B 48. Bf6 g5 (48... Kg8 $2 49. Qxc1 Qe8 50. Qb2 $18 )49. Bxg5 $18 )48. Qh4+ {[%emt 0:3:40]} Kg8 {[%emt 0:0:13][%csl Ge3][%cal Rc6g2]} 49. e8=Q+ {[%emt 0:0:12]} Qxe8 {[%emt 0:0:3]} 50. Bf6 {[%emt 0:0:3][%csl Gf6][%cal Rh4h8]} Nf1+ {[%emt 0:0:6]} (50... c1=B 51. Qh8# )51. Kh1 {[%emt 0:0:6][%csl Gf6][%cal Rh4h8]} Ng3+ {[%emt 0:0:5]} (51... c1=B 52. Qh8# )52. Kh2 {[%emt 0:0:1]} Nh5 {[%emt 0:0:10]} (52... c1=B 53. Qh8# )53. Bb2 {[%emt 0:0:2]} Kh7 {[%emt 0:6:0]} (53... Qxa4 54. Qd8+ )54. Qg5 {[%emt 0:1:47]} (54. Qf2 $142 Qxa4 55. Qxb6 )Qe3 {[%emt 0:4:7][%cal Yf7f6] ...f6! would now be deadly.} 55. Qd5 {[%emt 0:0:40]} Qg3+ {[%emt 0:0:24]} (55... c1=B 56. Qxf7+ Kh6 57. Qf8+ Kg5 58. Qd8+ Kh6 59. Qh8+ Kg5 60. Qd8+ Kh6 61. Bxc1 Qg3+ (61... Qxc1 62. Qh8+ Kg5 63. Qe5+ Kh4 64. Qe6 $11 )62. Kg1 $11 )56. Kg1 {[%emt 0:0:4]} Qe1+ {[%emt 0:0:5]} 57. Kh2 {[%emt 0:0:2]} Qg3+ {[%emt 0:0:4]} ({Inferior is} 57... c1=B 58. Qxf7+ Kh6 59. Qf8+ Kg5 60. Qd8+ Kh6 61. Qf8+ Kg5 62. Qd8+ Kh6 63. Qh8+ Kg5 64. Qd8+ $11 )58. Kg1 $1 {[%emt 0:0:2] [#]} c1=Q+ $1 {[%emt 0:0:6]} 59. Bxc1 {[%emt 0:0:2]} Qe1+ {[%emt 0:0:5]} 60. Kh2 {[%emt 0:0:2]} Qg3+ $2 {[%emt 0:0:4]} (60... Qxc1 $19 61. Qxf7+ Ng7 )61. Kg1 $1 $11 {[%emt 0:15:4]} Qe1+ $2 {[%emt 0:15:4][%mdl 8192]} (61... f6 $11 62. Bd2 Qa3 )62. Kh2 $19 {[%emt 0:0:3]} Qxc1 {[%emt 0:0:4]} 63. Qxf7+ {[%emt 0:0:2]} Ng7 {[%emt 0:0:7] Weighted Error Value: White=0.37/Black=0.12 (very precise)   Loses game:     	White=1     	---        Missed win:     	---       	Black=1      Mistake:       	White=4     	Black=2      Inaccurate:     	White=5     	Black=1      OK:         	White=12    	Black=23     Best:        	White=2     	Black=5      Strong:       	White=2     	---        Brilliant:      	---       	Black=1} 0-1

[Event "87th Tata Steel Masters 2025"]
[White "Fedoseev,Vladimir"]
[Black "Wei,Yi"]
[Site "Wijk aan Zee"]
[Round "13.2"]
[Annotator "TA"]
[Result "1/2-1/2"]
[Date "2025.02.02"]
[WhiteElo "2717"]
[BlackElo "2751"]
[PlyCount "132"]
[TimeControl "60"]

{[%evp 18,132,0,15,9,16,12,13,22,0,0,0,33,18,25,21,35,24,23,14,15,14,21,11,11,10,17,16,19,20,18,18,10,17,12,17,13,5,4,13,21,15,14,20,39,11,17,8,31,18,25,20,26,16,27,28,35,21,19,16,16,0,8,0,0,0,29,0,13,0,0,0,0,0,0,0,0,0,0,0,0,0,0,0,0,-9,0,0,0,0,0,0,0,0,0,0,0,0,0,0,0,-264,0,0,0,0,0,0,0,0,0,0,0,0,0,0,0]} 1. d4 {[%emt 0:0:3]} Nf6 {[%emt 0:0:7]} 2. Nf3 {[%emt 0:0:6]} d5 {[%emt 0:0:15]} 3. c4 {[%emt 0:0:8]} e6 {[%emt 0:0:6]} 4. g3 {[%emt 0:0:20]} Be7 {[%emt 0:0:15]} 5. Bg2 {[%emt 0:0:7]} O-O {[%emt 0:0:7]} 6. O-O {[%emt 0:0:4]} dxc4 {[%emt 0:0:9]} 7. Qa4 {[%emt 0:0:4]} a6 {[%emt 0:0:17]} 8. Qxc4 {[%emt 0:0:5]} b5 {[%emt 0:0:4]} 9. Qc2 {[%emt 0:0:6]} Bb7 {[%emt 0:0:4]} 10. Bd2 {[%emt 0:0:6]} Bd6 {[%emt 0:6:50] E05: Open Catalan: 5 Nf3 Be7.} 11. Re1 {[%emt 0:7:20]} Be4 {[%emt 0:24:1]} 12. Qc1 {[%emt 0:0:12]} Bb7 {[%emt 0:3:33]} 13. Be3 $146 {[%emt 0:2:31]} (13. a3 Nbd7 14. b4 Qc8 15. Nc3 Ne4 16. Nxe4 Bxe4 17. Bh3 Bxf3 18. exf3 c6 19. f4 {½-½ Giri,A (2776)-Harikrishna,P (2731) Tata Steel India blitz 2019 (9)} )Nbd7 {[%emt 0:4:37]} 14. Nbd2 {[%emt 0:0:49]} Nd5 {[%emt 0:10:22]} 15. Nb3 {[%emt 0:0:36]} Nxe3 {[%emt 0:15:53]} 16. Qxe3 {[%emt 0:0:7]} Rc8 {[%emt 0:2:39]} 17. Rec1 {[%emt 0:8:29]} Bd5 {[%emt 0:1:11]} 18. Nfd2 {[%emt 0:6:6]} Bxg2 {[%emt 0:0:52]} 19. Kxg2 {[%emt 0:0:6]} c5 {[%emt 0:0:21]} 20. Ne4 {[%emt 0:1:58]} (20. Nxc5 Nxc5 21. dxc5 Bxc5 22. Rxc5 Rxc5 23. Qxc5 Qxd2 $19 )cxd4 {[%emt 0:1:0]} 21. Nxd4 {[%emt 0:0:17][%cal Yb3d4,Yd4f3,Yf3e5][%mdl 32]} Nc5 {[%emt 0:3:7]} 22. Nxd6 {[%emt 0:11:37]} ({But not} 22. Nxe6 $2 Nxe6 23. Rd1 (23. Rxc8 $2 Qxc8 24. Nxd6 Qc6+ 25. Ne4 f5 $19 )Rc6 $19 )Qxd6 {[%emt 0:0:5]} 23. Nf3 {[%emt 0:1:4]} Na4 {[%emt 0:4:51]} 24. b3 {[%emt 0:2:12]} Nb6 {[%emt 0:1:49]} 25. Qd4 {[%emt 0:3:54]} Qb8 {[%emt 0:12:20]} 26. e4 {[%emt 0:5:4]} Qb7 {[%emt 0:0:8]} 27. Ne5 {[%emt 0:11:39]} f6 {[%emt 0:7:41] [#]} 28. Nd3 {[%emt 0:2:23]} Rfd8 {[%emt 0:0:10]} 29. Rxc8 {[%emt 0:3:35]} Qxc8 {[%emt 0:0:4]} 30. Qe3 {[%emt 0:0:5][%cal Ya1c1]} Nd7 {[%emt 0:1:19]} 31. Rc1 {[%emt 0:1:31]} Qb7 {[%emt 0:0:5]} 32. Qd4 {[%emt 0:2:47] Nc5 is in the air} Qa8 {[%emt 0:0:41][%cal Yd7e5] [#]} 33. Qb4 {[%emt 0:4:31]} Nf8 {[%emt 0:1:16]} 34. Nc5 {[%emt 0:1:21]} Rc8 {[%emt 0:1:13]} 35. Qd2 {[%emt 0:1:43] Dodges Nd7} Rd8 {[%emt 0:2:17]} 36. Qe3 {[%emt 0:0:57]} Kf7 {[%emt 0:1:22]} 37. Nd3 {[%emt 0:2:37] Counterplay Black} Rc8 {[%emt 0:4:7]} 38. Rd1 {[%emt 0:7:29]} Nd7 {[%emt 0:2:7]} 39. Qd4 {[%emt 0:5:15]} Rc7 {[%emt 0:0:2]} 40. Rd2 {[%emt 0:8:4]} Qb7 {[%emt 0:2:8]} 41. Qe3 {[%emt 0:53:50]} Rc8 {[%emt 0:3:19]} 42. Nf4 {[%emt 0:0:0]} Ne5 {[%emt 0:2:28]} 43. Rd6 {[%emt 0:0:0]} Rc6 {[%emt 0:0:29]} 44. Rd8 {[%emt 0:0:0]} Rc8 {[%emt 0:2:59]} 45. Rxc8 {[%emt 0:0:0]} Qxc8 $11 {[%emt 0:0:51][%mdl 4096] Endgame KQN-KQN. Successful Defense Black} 46. Qa7+ {[%emt 0:0:0]} Nd7 {[%emt 0:0:24]} 47. Nd3 {[%emt 0:0:0]} Qc6 {[%emt 0:0:55]} 48. Kf3 {[%emt 0:0:0]} Ke7 {[%emt 0:6:12]} 49. Ke3 {[%emt 0:0:0]} Qc3 {[%emt 0:1:39]} 50. f4 {[%emt 0:0:0]} (50. Qxa6 $2 Qxd3+ 51. Kxd3 Nc5+ 52. Kd4 Nxa6 $19 )Qc2 {[%emt 0:6:6][%csl Ya2,Yh2]} 51. Nb4 $1 {[%emt 0:0:0]} (51. Qxa6 $2 {is the wrong capture.} Qxd3+ (51... Qxh2 52. Kf3 $11 )52. Kxd3 Nc5+ 53. Kd4 Nxa6 $19 )Qxh2 {[%emt 0:7:28]} 52. Qc7 $1 {[%emt 0:0:0] Threatening mate with Nc6+.} (52. Nc6+ Kd6 53. Nd4 Qxg3+ 54. Ke2 Qg4+ (54... Qxf4 55. Qxa6+ Ke5 56. Nf3+ Kxe4 57. Qc6+ Kf5 58. Qxd7 $16 )55. Ke3 g5 56. Qxa6+ Ke7 57. Nc6+ Kf7 58. Nd8+ Kg6 59. Nxe6 Qg3+ 60. Kd4 gxf4 )Qxg3+ {[%emt 0:0:19]} 53. Ke2 {[%emt 0:0:0]} Qg2+ {[%emt 0:2:12]} 54. Ke3 {[%emt 0:0:0]} Qg1+ {[%emt 0:2:6]} 55. Ke2 {[%emt 0:0:0]} Qg2+ {[%emt 0:8:55]} 56. Ke3 {[%emt 0:0:0] And now Nc6+ would win.} Qh3+ {[%emt 0:0:8]} 57. Kd2 $1 {[%emt 0:0:0]} e5 {[%emt 0:0:39]} 58. Nd5+ {[%emt 0:0:0]} Ke8 {[%emt 0:0:51]} (58... Kf7 $5 59. f5 $8 Qg2+ 60. Ke3 Qg1+ 61. Ke2 Qg2+ 62. Ke3 $11 )59. Qc8+ {[%emt 0:2:33]} Kf7 {[%emt 0:0:4] And now ...Qg2+ would win.} 60. f5 {[%emt 0:0:8] The position is equal.} Qg2+ {[%emt 0:0:30]} 61. Ke3 {[%emt 0:16:24]} Qh3+ {[%emt 0:17:18]} 62. Kd2 {[%emt 0:3:59]} Qg2+ {[%emt 0:0:8]} 63. Ke3 {[%emt 0:0:24]} Qg1+ {[%emt 0:0:13]} 64. Ke2 {[%emt 0:0:11]} Qh2+ {[%emt 0:0:21]} 65. Ke3 {[%emt 0:2:27]} Qg1+ {[%emt 0:0:8]} 66. Ke2 {[%emt 0:0:8]} Qg2+ {[%emt 0:0:5] Weighted Error Value: White=0.03 (flawless) /Black=0.03 (flawless)   Missed win:     	---       	Black=1      Inaccurate:     	White=2     	Black=2      OK:         	White=27    	Black=22     Best:        	White=2     	Black=2      Strong:       	White=3     	---} 1/2-1/2

[Event "87th Tata Steel Masters 2025"]
[White "Abdusattorov,Nodirbek"]
[Black "Harikrishna,Pentala"]
[Site "Wijk aan Zee"]
[Round "13.3"]
[Annotator "TA"]
[Result "1/2-1/2"]
[Date "2025.02.02"]
[WhiteElo "2768"]
[BlackElo "2695"]
[PlyCount "99"]
[TimeControl "60"]

{[%evp 9,99,4,4,5,37,41,36,37,31,22,23,33,53,29,29,0,0,0,0,0,0,0,18,18,21,9,13,0,21,0,22,18,22,0,0,13,0,10,0,0,0,0,12,9,17,15,2,5,8,0,0,0,4,0,0,0,0,0,4,0,0,0,11,0,0,0,0,0,0,0,0,0,0,0,0,0,0,0,0,0,0,0,0,0,0,0,0,0,0,0,0,0]} 1. e4 {[%emt 0:0:5]} e5 {[%emt 0:0:4]} 2. Nf3 {[%emt 0:0:12]} Nc6 {[%emt 0:0:4]} 3. g3 {[%emt 0:12:41]} Nf6 {[%emt 0:6:45]} 4. d3 {[%emt 0:2:14]} d5 {[%emt 0:2:1]} 5. exd5 {[%emt 0:2:2]} Qxd5 {[%emt 0:5:57]} 6. Bg2 {[%emt 0:7:5] C44: Ponziani Opening and Scotch Gambit.} e4 {[%emt 0:8:13]} 7. Nc3 {[%emt 0:14:1]} Bb4 {[%emt 0:8:4]} 8. Nd2 {[%emt 0:3:38][%csl Yd5,Ye4] White is slightly better.} Bxc3 {[%emt 0:6:3]} 9. bxc3 {[%emt 0:0:17][%cal Rd2e4]} Bg4 {[%emt 0:0:8] [#]} 10. Nxe4 $1 {[%emt 0:0:21]} O-O-O {[%emt 0:7:51]} 11. f3 {[%emt 0:1:13]} Rhe8 $1 {[%emt 0:0:8]} 12. Qe2 $146 {[%emt 0:1:49]} (12. Be3 Qa5 13. fxg4 Nxe4 14. O-O Nxc3 15. Qf3 f6 16. g5 f5 17. Kh1 g6 18. Bd2 {1-0 Zvjaginsev,V (2627)-Motylev,A (2640) Moscow Dvoretsky Memorial rapid 2019 (2)} )Nxe4 {[%emt 0:5:3] Black sacrificed a pawn. The position is equal.} 13. dxe4 {[%emt 0:0:7]} Qa5 {[%emt 0:0:11] [#]} 14. O-O {[%emt 0:3:59]} Be6 {[%emt 0:8:4]} 15. Qe1 {[%emt 0:2:21]} Ne5 {[%emt 0:3:18][%cal Ye5c4]} (15... Bxa2 16. Qf2 $16 )16. Be3 {[%emt 0:5:27]} Nc4 {[%emt 0:0:27]} 17. Bd4 {[%emt 0:0:5]} f6 {[%emt 0:0:9]} 18. Rf2 {[%emt 0:3:52]} Rd7 {[%emt 0:2:51]} 19. Bf1 {[%emt 0:5:25]} Red8 {[%emt 0:1:33]} 20. a4 {[%emt 0:1:16]} c5 {[%emt 0:6:27]} 21. Be3 {[%emt 0:0:54]} Nxe3 {[%emt 0:2:10]} 22. Qxe3 {[%emt 0:0:1]} Rd1 {[%emt 0:0:20]} 23. Rxd1 {[%emt 0:3:28]} Rxd1 {[%emt 0:0:9]} 24. e5 {[%emt 0:0:7][%cal Ye4e5,Ye5e6,Ye6e7][%mdl 32]} Bh3 {[%emt 0:10:53]} 25. e6 {[%emt 0:8:57] And now e7 would win.} (25. exf6 Qa6 26. Qxc5+ Kb8 27. Qf8+ (27. fxg7 $2 Rxf1+ 28. Rxf1 Qxf1# )Kc7 28. Qc5+ (28. Qxg7+ $2 Kc6 $19 )Kb8 29. Qf8+ Kc7 30. Qf7+ Kc8 31. Qf8+ (31. fxg7 $2 Rxf1+ 32. Rxf1 Qxf1# )Kc7 $16 )Qxa4 {[%emt 0:3:16]} 26. e7 {[%emt 0:12:11]} (26. Qxc5+ Qc6 27. Qf8+ (27. Qxa7 $2 Qb5 $19 )(27. Qxc6+ bxc6 28. g4 Kc7 $19 )Kc7 28. Qxg7+ Kb6 29. Qxh7 (29. Qxf6 a5 $11 )Qxe6 $17 )Qe8 $1 {[%emt 0:0:8]} 27. Qxc5+ {[%emt 0:0:4]} Kb8 $1 {[%emt 0:0:4]} 28. Qe3 {[%emt 0:2:46]} a5 $1 {[%emt 0:7:37]} 29. g4 {[%emt 0:3:40]} a4 {[%emt 0:2:43]} 30. c4 {[%emt 0:0:44]} Kc7 {[%emt 0:2:39]} 31. Qc5+ {[%emt 0:1:53]} Kb8 $1 {[%emt 0:1:9]} 32. Qe3 {[%emt 0:4:12]} Kc7 {[%emt 0:0:16]} 33. f4 {[%emt 0:0:49] Really sharp!} Bxf1 {[%emt 0:2:32]} 34. Rxf1 {[%emt 0:0:16]} Rxf1+ {[%emt 0:0:20]} 35. Kxf1 $11 {[%emt 0:0:1][%mdl 4096] Endgame KQ-KQ. White is a pawn up.} Kd7 {[%emt 0:2:41]} 36. Qe4 {[%emt 0:0:15][%csl Yb7,Yh7]} Qa8 {[%emt 0:1:1]} 37. g5 {[%emt 0:8:0]} ({Resist} 37. Qxh7 $6 b5 $16 )fxg5 {[%emt 0:2:23]} 38. fxg5 {[%emt 0:0:49][%cal Yh2h4]} g6 $1 {[%emt 0:3:49]} 39. Qe5 {[%emt 0:1:36]} Qe8 {[%emt 0:0:21]} 40. Qe4 {[%emt 0:0:15]} Qf7+ {[%emt 0:1:1]} 41. Kg2 {[%emt 0:4:7]} Ke8 {[%emt 0:0:23] and ...Qf5 would now be decisive} 42. c5 {[%emt 0:0:26]} Qf5 {[%emt 0:2:58]} 43. Qxa4+ {[%emt 0:0:59]} ({But not} 43. Qxb7 Qxc2+ (43... Qxc5 44. Qa8+ Kxe7 45. Qxa4 $11 )(43... Qxg5+ 44. Kf3 $15 )44. Kf1 Qc1+ (44... Qxc5 45. Qa8+ Kxe7 46. Qxa4 $11 )45. Kg2 Qxg5+ 46. Kf1 Qc1+ (46... Qxe7 47. c6 $11 )(46... Qxc5 47. Qa8+ Kxe7 48. Qxa4 $17 )47. Kg2 Qc2+ (47... Qxc5 48. Qa8+ Kxe7 49. Qxa4 $17 )48. Kf1 Qxc5 49. Qa8+ Kxe7 50. Qxa4 h5 $15 )Kxe7 {[%emt 0:0:5]} 44. h4 {[%emt 0:1:38]} Qxc5 {[%emt 0:2:2]} 45. Qe4+ {[%emt 0:0:1]} Kd6 {[%emt 0:1:8]} 46. Qf4+ {[%emt 0:0:19]} Qe5 {[%emt 0:0:38]} 47. Qb4+ {[%emt 0:0:42]} Qc5 {[%emt 0:0:24]} 48. Qf4+ {[%emt 0:0:8]} Qe5 {[%emt 0:0:5]} 49. Qb4+ {[%emt 0:0:46]} Qc5 {[%emt 0:0:7]} 50. Qf4+ {[%emt 0:0:11] Weighted Error Value: White=0.03 (flawless) /Black=0.03 (flawless)   Inaccurate:     	White=1     	Black=1      OK:         	White=14    	Black=21     Best:        	White=1     	Black=3      Strong:       	White=1     	Black=6} 1/2-1/2

[Event "87th Tata Steel Masters 2025"]
[White "Keymer,Vincent"]
[Black "Praggnanandhaa,Rameshbabu"]
[Site "Wijk aan Zee"]
[Round "13.4"]
[Annotator "RC"]
[Result "1-0"]
[Date "2025.02.02"]
[WhiteElo "2733"]
[BlackElo "2741"]
[PlyCount "159"]
[TimeControl "60"]

1. e4 {[%emt 0:0:4]} c6 {[%emt 0:1:46]} 2. Nf3 {[%emt 0:2:8]} d5 {[%emt 0:0:17]} 3. Nc3 {[%emt 0:0:6]} Bg4 {[%emt 0:0:27]} 4. h3 {[%emt 0:1:13]} Bxf3 {[%emt 0:0:6]} 5. Qxf3 {[%emt 0:0:5]} e6 {[%emt 0:0:4]} 6. Be2 {[%emt 0:2:37]} Nf6 {[%emt 0:1:34]} 7. O-O {[%emt 0:4:34]} d4 {[%emt 0:1:59]} 8. Nb1 {[%emt 0:1:12]} Bd6 {[%emt 0:0:8]} 9. c3 {[%emt 0:10:9]} c5 {[%emt 0:9:54]} 10. cxd4 {[%emt 0:8:23]} cxd4 {[%emt 0:3:9]} 11. Na3 {[%emt 0:0:23]} O-O {[%emt 0:16:14]} 12. Nc4 {[%emt 0:0:22]} Bc7 {[%emt 0:8:14]} 13. d3 {[%emt 0:5:12]} Nc6 {[%emt 0:1:28]} 14. a4 {[%emt 0:8:11]} a6 {[%emt 0:7:2]} 15. g3 {[%emt 0:12:34]} b5 {[%emt 0:8:35]} 16. Na3 {[%emt 0:2:19]} Rb8 {[%emt 0:7:21]} 17. axb5 {[%emt 0:3:37]} axb5 {[%emt 0:0:44]} 18. Bg5 {[%emt 0:0:5]} Bd6 {[%emt 0:5:44]} 19. Rfc1 {[%emt 0:3:2]} Ne5 {[%emt 0:2:31]} 20. Qg2 {[%emt 0:0:4]} Ned7 {[%emt 0:0:8]} 21. Nc2 {[%emt 0:5:2]} Qb6 {[%emt 0:1:42]} 22. b4 {[%emt 0:6:8]} e5 {[%emt 0:4:6]} 23. h4 {[%emt 0:4:21]} Ra8 {[%emt 0:2:0]} 24. Qf1 {[%emt 0:3:5]} Rfc8 {[%emt 0:2:11]} 25. Rxa8 {[%emt 0:1:54]} Rxa8 {[%emt 0:0:9]} 26. Ra1 {[%emt 0:0:4]} Qc6 {[%emt 0:3:38]} 27. Rxa8+ {[%emt 0:2:50]} Qxa8 {[%emt 0:0:4]} 28. Qc1 {[%emt 0:2:18]} Qb7 {[%emt 0:2:39]} 29. Bd1 {[%emt 0:1:45]} Ne8 {[%emt 0:7:8]} 30. Bd2 {[%emt 0:0:10]} Nb8 {[%emt 0:1:54]} 31. Ne1 {[%emt 0:2:38]} Nc6 {[%emt 0:2:40]} 32. Bb3 {[%emt 0:0:48]} Nxb4 {[%emt 0:4:26]} 33. Bxb4 {[%emt 0:0:16]} Bxb4 {[%emt 0:0:1]} 34. Nf3 {[%emt 0:0:6]} Qe7 {[%emt 0:1:27]} 35. Qc6 {[%emt 0:2:37]} h6 {[%emt 0:0:36]} 36. Qxb5 {[%emt 0:1:45]} Bd6 {[%emt 0:0:8]} 37. h5 {[%emt 0:5:1]} Nf6 {[%emt 0:1:33]} 38. Nh4 {[%emt 0:0:40]} Qd7 {[%emt 0:1:4]} 39. Qa6 {[%emt 0:1:37]} Kh7 {[%emt 0:2:29]} 40. Qa2 {[%emt 0:1:38]} Kg8 {[%emt 0:1:38]} 41. Qa8+ {[%emt 0:26:2]} Qe8 {[%emt 0:2:17]} 42. Qa6 {[%emt 0:0:33]} Bf8 {[%emt 0:17:39]} 43. Qb6 {[%emt 0:8:28]} Nh7 {[%emt 0:13:45]} 44. Qg6 {[%emt 0:15:25]} Ng5 {[%emt 0:1:36]} 45. Qf5 {[%emt 0:0:17]} Qb8 {[%emt 0:12:41]} 46. Bc4 {[%emt 0:0:14]} Bd6 {[%emt 0:1:21]} 47. Kg2 {[%emt 0:1:57]} Kf8 {[%emt 0:1:43]} 48. Ng6+ {[%emt 0:0:18]} Kg8 {[%emt 0:0:4]} 49. Qd7 {[%emt 0:1:31]} Bf8 {[%emt 0:0:21]} 50. Nh4 {[%emt 0:2:21]} Bd6 {[%emt 0:0:46]} 51. Nf5 {[%emt 0:1:4]} Bf8 {[%emt 0:0:15]} 52. Nh4 {[%emt 0:1:46]} Bd6 {[%emt 0:0:55]} 53. Nf3 {[%emt 0:0:4]} Qf8 {[%emt 0:0:20]} 54. Nxg5 {[%emt 0:3:50]} hxg5 {[%emt 0:0:2]} 55. Bxf7+ {[%emt 0:0:7]} Kh8 {[%emt 0:2:25]} 56. Bb3 {[%emt 0:1:34]} Be7 {[%emt 0:1:49]} 57. Qe6 {[%emt 0:0:26]} Bf6 {[%emt 0:0:13]} 58. Bc4 {[%emt 0:0:33]} Kh7 {[%emt 0:0:19]} 59. Qf5+ {[%emt 0:0:10]} Kh8 {[%emt 0:0:1]} 60. Qg6 {[%emt 0:0:28]} Be7 {[%emt 0:0:6]} 61. Bf7 {[%emt 0:15:59]} Bb4 {[%emt 0:15:35]} 62. Qf5 {[%emt 0:0:34]} Bd6 {[%emt 0:1:40]} 63. Kh3 {[%emt 0:0:20]} Be7 {[%emt 0:0:37]} 64. Kg4 {[%emt 0:0:51]} Bf6 {[%emt 0:0:36]} 65. Be6 {[%emt 0:0:48]} Qe7 {[%emt 0:1:20]} 66. f4 {[%emt 0:0:53]} gxf4 {[%emt 0:0:6]} 67. gxf4 {[%emt 0:0:5]} Qd6 {[%emt 0:0:50]} 68. Bc4 {[%emt 0:0:55]} Qb8 {[%emt 0:0:38]} 69. Bd5 {[%emt 0:0:47]} exf4 {[%emt 0:0:22]} 70. e5 {[%emt 0:0:15]} Bxe5 {[%emt 0:0:14]} 71. Be4 {[%emt 0:0:8]} Kg8 {[%emt 0:0:28]} 72. Qe6+ {[%emt 0:0:23]} Kh8 {[%emt 0:0:4]} 73. Qg6 {[%emt 0:0:45]} Qc8+ {[%emt 0:1:23]} 74. Bf5 {[%emt 0:0:13]} Qg8 {[%emt 0:0:1]} 75. Kf3 {[%emt 0:0:19]} Bf6 {[%emt 0:0:56]} 76. Be4 {[%emt 0:0:33]} Be5 {[%emt 0:0:25]} 77. h6 {[%emt 0:0:15]} Bb8 {[%emt 0:0:37]} 78. Qg5 {[%emt 0:1:3]} Qf8 {[%emt 0:0:30]} 79. hxg7+ {[%emt 0:0:16]} Qxg7 {[%emt 0:0:1]} 80. Qh4+ {[%emt 0:0:6]} 1-0